fUSD/lending_fUSD_20251024
["ID","MTS","AMOUNT","RATE_DAILY","PERIOD"]
[392292396,1761313852666,-151.0,0.0004037,120]
[392292397,1761313852676,-151.0,0.0004037,120]
[392292398,1761313852686,-151.0,0.0004037,120]
[392292399,1761313852697,-569.507267,0.0004037,120]
[392292400,1761313852707,-151.0,0.0004037,120]
[392292401,1761313852716,-151.0,0.0004037,120]
[392292402,1761313852729,-151.0,0.0004037,120]
[392292403,1761313852739,-151.0,0.0004037,10]
[392292404,1761313852749,-154.842496,0.0004037,120]
[392292405,1761313852758,-151.0,0.0004037,60]
[392292406,1761313852768,-151.0,0.0004037,120]
[392292407,1761313852778,-569.507267,0.0004037,120]
[392292408,1761313852787,-151.0,0.0004037,120]
[392292409,1761313852801,-151.0,0.0004037,120]
[392292410,1761313852811,-151.0,0.0004037,60]
[392292411,1761313852821,-151.0,0.0004037,10]
[392292412,1761313852831,-569.507267,0.0004037,120]
[392292413,1761313852840,-161.990424,0.0004037,120]
[392292414,1761313852850,-349.636871,0.0004037,120]
[392292415,1761313852860,-349.636871,0.0004037,120]
[392292416,1761313852871,-349.636871,0.0004037,120]
[392292417,1761313852884,-349.636871,0.0004037,120]
[392292418,1761313852895,-151.0,0.0004037,120]
[392292419,1761313852905,-151.0,0.0004037,120]
[392292420,1761313852915,-151.0,0.0004037,120]
[392292421,1761313852925,-151.0,0.0004037,120]
[392292422,1761313852935,-151.0,0.0004037,120]
[392292423,1761313852945,-151.0,0.0004037,120]
[392292424,1761313852955,-297.754834,0.0004037,120]
[392292425,1761313852964,-151.0,0.0004037,30]
[392292426,1761313852976,-151.0,0.0004037,120]
[392292427,1761313852986,-151.0,0.0004037,120]
[392292428,1761313852996,-151.0,0.0004037,120]
[392292429,1761313853008,-151.0,0.0004037,120]
[392292430,1761313853018,-151.0,0.0004037,120]
[392292431,1761313853028,-151.0,0.0004037,120]
[392292432,1761313853038,-151.0,0.0004037,120]
[392292433,1761313853047,-151.0,0.0004037,120]
[392292434,1761313853058,-151.0,0.0004037,120]
[392292435,1761313853067,-151.0,0.0004037,120]
[392292436,1761313853076,-151.0,0.0004037,120]
[392292437,1761313853086,-151.0,0.0004037,120]
[392292438,1761313853096,-151.0,0.0004037,120]
[392292439,1761313853106,-151.0,0.0004037,120]
[392292440,1761313853116,-151.0,0.0004037,120]
[392292441,1761313853126,-300.827676,0.0004037,120]
[392292442,1761313853136,-151.0,0.0004037,120]
[392292443,1761313853146,-151.0,0.0004037,120]
[392292444,1761313853156,-300.827676,0.0004037,120]
[392292445,1761313853166,-319.854644,0.0004037,120]
[392292446,1761313853176,-319.854644,0.0004037,120]
[392292447,1761313853188,-300.827676,0.0004037,120]
[392292448,1761313853198,-319.854644,0.0004037,120]
[392292449,1761313853208,-300.827676,0.0004037,120]
[392292450,1761313853218,-319.854644,0.0004037,120]
[392292451,1761313853232,-151.0,0.0004037,120]
[392292452,1761313853242,-151.0,0.0004037,120]
[392292453,1761313853252,-393.926731,0.0004037,120]
[392292454,1761313853263,-151.0,0.0004037,120]
[392292455,1761313853273,-393.926731,0.0004037,120]
[392292456,1761313853283,-704.673363,0.0004037,120]
[392292457,1761313853292,-393.926731,0.0004037,120]
[392292458,1761313853302,-704.673363,0.0004037,120]
[392292459,1761313853311,-393.926731,0.0004037,120]
[392292460,1761313853321,-151.0,0.0004037,120]
[392292461,1761313853331,-1275.889961,0.0004037,120]
[392292462,1761313853341,-151.0,0.0004037,120]
[392292463,1761313853351,-704.673363,0.0004037,120]
[392292464,1761313853361,-1275.889961,0.0004037,120]
[392292465,1761313853371,-151.0,0.0004037,120]
[392292466,1761313853381,-151.0,0.0004037,120]
[392292467,1761313853391,-151.0,0.0004037,120]
[392292468,1761313853400,-704.673363,0.0004037,120]
[392292469,1761313853410,-151.0,0.0004037,120]
[392292470,1761313853419,-1275.889961,0.0004037,120]
[392292471,1761313853429,-151.0,0.0004037,120]
[392292472,1761313853439,-151.0,0.0004037,120]
[392292473,1761313853448,-1275.889961,0.0004037,120]
[392292474,1761313853457,-151.0,0.0004037,120]
[392292475,1761313853475,-151.0,0.0004037,120]
[392292476,1761313853493,-214.38669,0.0004037,120]
[392292477,1761313853506,-153.233246,0.0004037,120]
[392292478,1761313853520,-207.090902,0.0004037,120]
[392292479,1761313853535,-214.38669,0.0004037,120]
[392292480,1761313853550,-151.0,0.0004037,120]
[392292481,1761313853565,-250.976585,0.0004037,120]
[392292482,1761313853580,-214.38669,0.0004037,120]
[392292483,1761313853595,-207.090902,0.0004037,120]
[392292484,1761313853609,-151.0,0.0004037,120]
[392292485,1761313853624,-151.0,0.0004037,120]
[392292486,1761313853639,-214.38669,0.0004037,120]
[392292487,1761313853654,-207.090902,0.0004037,120]
[392292488,1761313853669,-151.0,0.0004037,120]
[392292489,1761313853684,-250.976585,0.0004037,120]
[392292490,1761313853700,-207.090902,0.0004037,120]
[392292491,1761313853715,-250.976585,0.0004037,120]
[392292492,1761313853730,-250.976585,0.0004037,120]
[392292493,1761313853744,-151.0,0.0004037,120]
[392292494,1761313853761,-151.0,0.0004037,120]
[392292495,1761313853777,-151.0,0.0004037,120]
[392292496,1761313853791,-151.0,0.0004037,120]
[392292497,1761313853805,-151.0,0.0004037,120]
[392292498,1761313853817,-151.0,0.0004037,120]
[392292499,1761313853832,-151.0,0.0004037,120]
[392292500,1761313853847,-151.0,0.0004037,120]
[392292501,1761313853859,-151.0,0.0004037,120]
[392292502,1761313853871,-151.0,0.0004037,120]
[392292503,1761313853887,-21508.51194655,0.0004037,6]
[392292504,1761313853901,-19170.679896,0.00040371,3]
[392292505,1761313853913,-33215.7387211,0.00040371,3]
[392292506,1761313853927,-151.0,0.00040371,120]
[392292507,1761313853939,-239.156984,0.00040371,120]
[392292508,1761313853952,-151.0,0.00040371,120]
[392292509,1761313853966,-195.35224,0.00040371,120]
[392292510,1761313853982,-151.0,0.00040371,120]
[392292511,1761313853996,-151.0,0.00040371,120]
[392292512,1761313854011,-1719.016357,0.00040371,120]
[392292513,1761313854024,-1719.016357,0.00040371,120]
[392292514,1761313854038,-151.0,0.00040371,120]
[392292515,1761313854051,-1719.016357,0.00040371,120]
[392292516,1761313854064,-16607.8693605,0.00040371,3]
[392292517,1761313854077,-16607.8693605,0.00040371,3]
[392292518,1761313854090,-183050.59932291,0.00040371,6]
[392292519,1761313854103,-526.81221672,0.00040372,120]
[392292520,1761313854115,-6104.73688009,0.00040374,6]
[392292521,1761313854129,-8783.25549038,0.00040374,6]
[392292522,1761313854141,-150.0,0.00040376,120]
[392292523,1761313854161,-150.0,0.00040376,120]
[392292524,1761313854174,-19384.37736433,0.00040376,6]
[392292525,1761313854887,-1251.8999975,0.00040376,6]
[392292526,1761313854915,-5069.20329698,0.00040376,6]
[392292529,1761313908813,99.96882077,0.00013699,2]
[392292530,1761313908842,167.01265877,0.00013699,2]
[392292531,1761313908869,23.60852046,0.00013699,2]
[392292538,1761313986284,195.0,0.00022206,120]
[392292612,1761314338050,150.0,0.00027397,120]
[392292620,1761314409570,150.0,0.00027397,120]
[392292621,1761314418695,-190.73,0.00017783,2]
[392292622,1761314418717,-70.22109874,0.00017783,2]
[392292623,1761314449211,-79.77890126,0.00017783,2]
[392292624,1761314449233,-110.09486209,0.00017783,2]
[392292628,1761314490084,170.0,7.5e-07,2]
[392292629,1761314513753,261.0,0.00027397,120]
[392292634,1761314643568,-178.04797665,0.00017783,2]
[392292635,1761314643592,-209.39728647,0.00019561,2]
[392292636,1761314643621,-195.21481558,0.00020187,2]
[392292643,1761314897931,-155.87,0.00018037,2]
[392292644,1761314897954,-157.50485244,0.00020187,2]
[392292645,1761314897978,-95.37518442,0.00020187,2]
[392292646,1761314898003,-155.87,0.00021645,2]
[392292647,1761314898806,157.50485243,0.00021645,2]
[392292648,1761314925612,-373.7894,0.00023673,2]
[392292649,1761314925633,-500.0,0.00024932,2]
[392292650,1761314925655,-155.87,0.00025252,2]
[392292651,1761314925676,-290.59,0.00026676,2]
[392292652,1761314940139,-500.0,0.00027233,2]
[392292653,1761314940162,-155.87,0.00028859,2]
[392292654,1761314940184,-174.29,0.00032201,2]
[392292655,1761314940207,-155.87,0.00032467,2]
[392292656,1761314940229,-290.59,0.00033165,2]
[392292657,1761314940250,-162.08624417,0.00034757,2]
[392292658,1761314940272,-166.66,0.00034793,30]
[392292660,1761314953759,-211.27,0.00035508,2]
[392292661,1761314953784,-166.66,0.00035526,30]
[392292662,1761314953809,-131.8206,0.00035587,120]
[392292663,1761314969134,-172.50886654,0.00035587,120]
[392292664,1761314979621,179.8692,0.00028,10]
[392292678,1761315031910,-296.48304409,0.00028,10]
[392292679,1761315031920,-162.08624417,0.00034757,2]
[392292680,1761315031930,-53.61053346,0.00035587,120]
[392292681,1761315031940,-174.29,0.00035625,2]
[392292682,1761315031949,-400.0,0.00035844,2]
[392292683,1761315031959,-751.0,0.00035844,3]
[392292684,1761315031968,-9049.52,0.00035845,2]
[392292685,1761315031978,-155.87,0.00036074,2]
[392292686,1761315031987,-250.0,0.00036074,2]
[392292687,1761315031996,-300.0,0.00036074,7]
[392292688,1761315032005,-1000.0,0.00036074,2]
[392292689,1761315032015,-150.0,0.00036074,2]
[392292690,1761315032024,-150.0,0.00036074,120]
[392292691,1761315032033,-440.0,0.00036074,2]
[392292692,1761315032043,-500.0,0.00036074,2]
[392292693,1761315032052,-344.9,0.00036074,2]
[392292694,1761315032063,-1000.0,0.00036074,2]
[392292695,1761315032072,-166.66,0.00036258,30]
[392292696,1761315032081,-151.43,0.0003631,2]
[392292697,1761315032090,-8869.2956062,0.0003664,2]
[392292698,1761315032099,-500.0,0.00036736,30]
[392292699,1761315032107,-500.0,0.00036736,30]
[392292700,1761315032116,-500.0,0.00036736,7]
[392292701,1761315032127,-500.0,0.00036736,30]
[392292702,1761315032136,-500.0,0.00036736,2]
[392292703,1761315032146,-500.0,0.00036737,30]
[392292704,1761315032155,-500.0,0.00036737,30]
[392292705,1761315032165,-378.306,0.00036737,46]
[392292706,1761315032175,-500.0,0.00036737,30]
[392292707,1761315032184,-297.27154694,0.00036739,15]
[392292708,1761315032195,-205.71104996,0.00036739,15]
[392292709,1761315032203,-500.0,0.00036739,30]
[392292710,1761315032213,-500.0,0.0003674,2]
[392292711,1761315032222,-24978.56597522,0.0003674,60]
[392292718,1761315032298,-26208.93095028,0.0003674,60]
[392292720,1761315032309,-558.46449875,0.0003674,60]
[392292724,1761315032372,-554.7,0.0003674,60]
[392292728,1761315038182,-1212.97999365,0.0003674,60]
[392292729,1761315038194,-960.9656686,0.0003674,60]
[392292732,1761315040034,-1111.65410136,0.0003674,60]
[392292733,1761315040103,-243609.73881214,0.0003674,60]
[392292734,1761315040113,-155.0,0.0003674,2]
[392292735,1761315040125,-200.0,0.0003674,30]
[392292736,1761315040136,-188.13890458,0.0003674,2]
[392292737,1761315040145,-500.81021082,0.00036773,5]
[392292738,1761315040155,-500.0,0.00036773,5]
[392292739,1761315040164,-500.0,0.00036773,5]
[392292740,1761315040174,-500.0,0.00036773,5]
[392292741,1761315040183,-500.0,0.00036773,2]
[392292742,1761315040193,-500.0,0.00036773,5]
[392292743,1761315040203,-500.0,0.00036773,5]
[392292744,1761315040213,-500.0,0.00036773,5]
[392292745,1761315040222,-500.0,0.00036773,5]
[392292746,1761315040232,-500.0,0.00036773,5]
[392292747,1761315040242,-500.0,0.00036773,5]
[392292748,1761315040252,-501.59125938,0.00036773,5]
[392292749,1761315040261,-150.0,0.00036962,7]
[392292750,1761315040271,-166.66,0.00036991,30]
[392292751,1761315040280,-1091.0,0.00037039,5]
[392292752,1761315040290,-207.27140812,0.00037215,2]
[392292753,1761315040300,-150.0,0.00037215,2]
[392292754,1761315040310,-200.0,0.00037215,2]
[392292755,1761315040320,-150.0,0.00037215,2]
[392292756,1761315040330,-150.0,0.00037215,2]
[392292757,1761315040340,-150.0,0.00037215,2]
[392292758,1761315040350,-150.0,0.00037215,2]
[392292759,1761315040359,-150.0,0.00037215,2]
[392292760,1761315040372,-500.0,0.00037215,2]
[392292761,1761315040382,-172.54370901,0.00037215,2]
[392292762,1761315040392,-8869.29560619,0.00037215,2]
[392292763,1761315040401,-10296.80625318,0.00037219,2]
[392292764,1761315040410,-150.0,0.0003727,2]
[392292765,1761315040420,-150.0,0.0003727,2]
[392292766,1761315040429,-150.0,0.0003727,2]
[392292767,1761315040439,-500.0,0.0003727,2]
[392292768,1761315040449,-150.0,0.00037319,2]
[392292769,1761315040459,-1000.0,0.00037321,2]
[392292770,1761315040469,-1000.0,0.00037321,5]
[392292771,1761315040478,-500.0,0.00037321,5]
[392292772,1761315040489,-1000.0,0.00037321,5]
[392292773,1761315040507,-397.58989848,0.00037321,5]
[392292774,1761315040517,-500.0,0.00037321,5]
[392292775,1761315040527,-1000.0,0.00037321,5]
[392292776,1761315040536,-646.0,0.00037321,7]
[392292777,1761315040545,-150.0,0.00037325,2]
[392292778,1761315040554,-500.0,0.00037325,2]
[392292779,1761315040564,-150.0,0.00037379,2]
[392292780,1761315040577,-360.46599188,0.00037379,2]
[392292781,1761315040586,-211.27,0.00037481,2]
[392292782,1761315040596,-645.0,0.0003755,120]
[392292783,1761315040606,-150.0,0.00037558,7]
[392292784,1761315040616,-150.0,0.00037558,7]
[392292785,1761315040625,-150.0,0.00037558,2]
[392292786,1761315040635,-500.0,0.00037558,7]
[392292787,1761315040644,-150.0,0.00037558,7]
[392292788,1761315040653,-150.0,0.00037558,7]
[392292789,1761315040663,-150.77597293,0.00037558,7]
[392292790,1761315040672,-500.0,0.00037558,7]
[392292791,1761315040681,-202.01765236,0.00037558,7]
[392292792,1761315040691,-500.0,0.00037558,2]
[392292793,1761315040702,-1124.0,0.00037558,7]
[392292794,1761315040712,-150.0,0.00037558,7]
[392292795,1761315040721,-645.0,0.00037558,7]
[392292796,1761315040731,-645.0,0.00037567,2]
[392292797,1761315040740,-150.0,0.00037613,2]
[392292798,1761315040750,-500.0,0.00037613,7]
[392292799,1761315040759,-500.0,0.00037613,7]
[392292800,1761315040768,-500.0,0.00037613,2]
[392292802,1761315040777,-1124.0,0.00037613,7]
[392292803,1761315040786,-476.35224409,0.00037613,7]
[392292805,1761315040795,-150.0,0.00037668,2]
[392292806,1761315040805,-500.0,0.00037668,7]
[392292807,1761315040814,-500.0,0.00037668,7]
[392292808,1761315040823,-500.0,0.00037668,2]
[392292809,1761315040837,-1124.0,0.00037668,7]
[392292810,1761315040846,-151.43,0.0003768,2]
[392292811,1761315040855,-150.0,0.00037722,2]
[392292812,1761315040865,-500.0,0.00037722,7]
[392292813,1761315040874,-400.0,0.00037722,7]
[392292814,1761315040883,-500.0,0.00037722,2]
[392292815,1761315040892,-1124.0,0.00037722,7]
[392292816,1761315040903,-166.66,0.00037723,30]
[392292817,1761315040912,-250.0,0.00037777,2]
[392292818,1761315040922,-500.0,0.00037777,7]
[392292819,1761315040931,-500.0,0.00037777,2]
[392292820,1761315040939,-1124.0,0.00037777,7]
[392292821,1761315040951,-8869.29560619,0.0003779,2]
[392292822,1761315040960,-390.0,0.0003782,2]
[392292823,1761315040973,-500.0,0.00037832,7]
[392292824,1761315040982,-500.0,0.00037832,2]
[392292825,1761315040991,-1124.0,0.00037832,7]
[392292826,1761315041000,-645.0,0.00037864,7]
[392292827,1761315041009,-150.0,0.00037864,7]
[392292828,1761315041018,-258.30182387,0.00037864,7]
[392292829,1761315041027,-150.0,0.00037864,7]
[392292830,1761315041037,-500.0,0.00037864,7]
[392292831,1761315041046,-200.0,0.00037864,7]
[392292832,1761315041055,-150.0,0.00037864,7]
[392292833,1761315041063,-150.0,0.00037864,7]
[392292834,1761315041072,-264.98299232,0.00037864,7]
[392292835,1761315041081,-150.0,0.00037864,7]
[392292836,1761315041090,-150.0,0.00037864,7]
[392292837,1761315041099,-150.0,0.00037864,7]
[392292838,1761315041108,-196.87269476,0.00037868,5]
[392292839,1761315041117,-645.0,0.00037886,2]
[392292840,1761315041128,-500.0,0.00037887,7]
[392292841,1761315041138,-500.0,0.00037887,2]
[392292842,1761315041148,-1124.0,0.00037887,7]
[392292843,1761315041158,-500.0,0.00037919,7]
[392292844,1761315041167,-150.0,0.00037919,7]
[392292845,1761315041178,-150.0,0.00037919,7]
[392292846,1761315041187,-150.0,0.00037919,7]
[392292847,1761315041198,-500.0,0.00037942,7]
[392292848,1761315041208,-1124.0,0.00037942,7]
[392292849,1761315041218,-500.0,0.00037974,7]
[392292850,1761315041227,-200.0,0.00037974,7]
[392292851,1761315041236,-216.8255896,0.00037974,7]
[392292852,1761315041250,-227.61823771,0.00037974,7]
[392292853,1761315041259,-645.0,0.00037979,120]
[392292854,1761315041269,-645.0,0.00037986,7]
[392292855,1761315041279,-500.0,0.00037996,7]
[392292856,1761315041288,-1124.0,0.00037996,7]
[392292857,1761315041298,-500.0,0.00038028,7]
[392292858,1761315041308,-500.0,0.00038051,7]
[392292859,1761315041318,-1124.0,0.00038051,7]
[392292860,1761315041328,-500.0,0.00038083,7]
[392292861,1761315041337,-500.0,0.00038106,7]
[392292862,1761315041347,-1124.0,0.00038106,7]
[392292863,1761315041356,-201.14665809,0.00038138,7]
[392292864,1761315041370,-500.0,0.00038161,7]
[392292865,1761315041380,-1124.0,0.00038161,7]
[392292866,1761315041391,-819.0,0.00038173,2]
[392292867,1761315041400,-572.0,0.00038173,2]
[392292868,1761315041411,-606.0,0.00038173,2]
[392292869,1761315041421,-1591.0,0.00038173,2]
[392292870,1761315041430,-1312.0,0.00038173,2]
[392292871,1761315041440,-1269.0,0.00038173,2]
[392292872,1761315041451,-818.0,0.00038173,2]
[392292873,1761315041460,-168.0,0.00038191,7]
[392292874,1761315041470,-5396.15692806,0.000382,30]
[392292875,1761315041479,-500.0,0.00038216,7]
[392292876,1761315041489,-1124.0,0.00038216,7]
[392292877,1761315041498,-500.0,0.0003827,7]
[392292878,1761315041507,-1124.0,0.0003827,7]
[392292879,1761315041517,-500.0,0.00038325,7]
[392292880,1761315041526,-1124.0,0.00038325,7]
[392292881,1761315041536,-168.0,0.00038353,2]
[392292882,1761315041545,-8869.29560619,0.00038366,2]
[392292883,1761315041554,-500.0,0.0003838,7]
[392292884,1761315041564,-1124.0,0.0003838,7]
[392292885,1761315041573,-903.0,0.00038414,2]
[392292886,1761315041583,-500.0,0.00038435,7]
[392292887,1761315041592,-1124.0,0.00038435,7]
[392292888,1761315041601,-166.66,0.00038456,30]
[392292889,1761315041611,-500.0,0.0003849,7]
[392292890,1761315041621,-1124.0,0.0003849,7]
[392292891,1761315041630,-171.94634404,0.00038544,7]
[392292892,1761315041640,-1124.0,0.00038544,7]
[392292893,1761315041650,-1124.0,0.00038599,7]
[392292894,1761315041660,-1929.0,0.00038613,5]
[392292895,1761315041670,-168.0,0.00038613,2]
[392292896,1761315041679,-1124.0,0.00038654,7]
[392292897,1761315041689,-645.0,0.00038707,2]
[392292898,1761315041699,-1124.0,0.00038709,7]
[392292899,1761315041709,-1124.0,0.00038763,7]
[392292900,1761315041719,-476.35224409,0.00038763,7]
[392292901,1761315041728,-1133.72033001,0.00038818,7]
[392292902,1761315041737,-500.0,0.00038929,30]
[392292903,1761315041747,-8869.29560619,0.00038941,2]
[392292904,1761315041759,-1091.0,0.00038988,5]
[392292905,1761315041769,-5304.9590078,0.00039,3]
[392292906,1761315041778,-150.0,0.00039015,7]
[392292907,1761315041787,-720.46488456,0.00039018,2]
[392292908,1761315041796,-168.0,0.00039024,120]
[392292909,1761315041806,-174.29,0.0003905,2]
[392292910,1761315041816,-1000.0,0.000392,7]
[392292911,1761315041829,-950.69,0.00039293,2]
[392292912,1761315041838,-205.92,0.00039375,2]
[392292913,1761315041847,-168.0,0.00039444,2]
[392292914,1761315041856,-1241.88743276,0.0003945,30]
[392292915,1761315041867,-500.0,0.00039451,7]
[392292916,1761315041876,-900.0,0.00039451,7]
[392292917,1761315041886,-500.0,0.00039451,7]
[392292918,1761315041903,-211.27,0.00039453,2]
[392292919,1761315041919,-297.64,0.0003948,14]
[392292920,1761315041928,-500.0,0.00039488,30]
[392292921,1761315041938,-2000.0,0.000395,2]
[392292922,1761315041948,-168.0,0.00039508,2]
[392292923,1761315041957,-8869.29560619,0.00039516,2]
[392292924,1761315041967,-500.0,0.00039578,30]
[392292925,1761315041977,-12163.58280491,0.00039606,2]
[392292926,1761315041986,-300.0,0.00039616,16]
[392292927,1761315041996,-500.0,0.00039634,30]
[392292928,1761315042005,-290.59,0.00039654,2]
[392292929,1761315042016,-500.0,0.00039655,30]
[392292930,1761315042026,-500.0,0.00039655,30]
[392292931,1761315042036,-632.85241488,0.0003981,30]
[392292932,1761315042045,-178.58686772,0.00039822,14]
[392292933,1761315042055,-547.18,0.00039836,2]
[392292934,1761315042065,-1934.24713121,0.000399,120]
[392292935,1761315042075,-181.04145175,0.000399,120]
[392292936,1761315042084,-164.594613,0.000399,120]
[392292937,1761315042093,-187.55493399,0.000399,120]
[392292938,1761315042103,-206.10271691,0.000399,120]
[392292939,1761315042113,-4538.706,0.00039946,2]
[392292940,1761315042122,-558.0,0.00039946,2]
[392292941,1761315042131,-3487.0,0.00039946,2]
[392292942,1761315042426,-6456.0,0.00039946,2]
[392292943,1761315042438,-606.406,0.00039972,7]
[392292944,1761315042448,-606.406,0.00039972,7]
[392292945,1761315042458,-606.406,0.00039972,7]
[392292946,1761315042468,-606.407,0.00039972,7]
[392292947,1761315042477,-606.406,0.00039972,7]
[392292948,1761315042486,-58338.9230665,0.0003999,3]
[392292949,1761315042496,-500.0,0.00039999,30]
[392292950,1761315042505,-618.49,0.0004,120]
[392292951,1761315042515,-10000.0,0.0004,120]
[392292952,1761315042524,-10000.0,0.0004,120]
[392292953,1761315042534,-15000.0,0.0004,120]
[392292955,1761315042543,-171435.36933518,0.0004,3]
[392292956,1761315042553,-476.35224409,0.0004,120]
[392292957,1761315042562,-476.35224409,0.0004,30]
[392292958,1761315042572,-476.35224409,0.0004,3]
[392292959,1761315042582,-150.0,0.00040027,30]
[392292960,1761315042593,-200.0,0.00040028,20]
[392292961,1761315042602,-357.94,0.00040035,120]
[392292962,1761315042613,-8869.29560619,0.00040091,15]
[392292963,1761315042623,-1425.0,0.00040142,2]
[392292964,1761315042632,-1425.0,0.00040175,2]
[392292965,1761315042641,-19446.3076888,0.0004018,3]
[392292966,1761315042650,-5000.0,0.000402,120]
[392292967,1761315042659,-174.88705635,0.000402,120]
[392292968,1761315042668,-174.88705635,0.000402,120]
[392292969,1761315042678,-174.88705635,0.000402,120]
[392292970,1761315042687,-174.88705635,0.000402,120]
[392292971,1761315042697,-168.0,0.00040231,7]
[392292972,1761315042707,-504.05434011,0.00040233,30]
[392292973,1761315042717,-1241.88743276,0.00040254,30]
[392292974,1761315042726,-500.0,0.00040254,30]
[392292975,1761315042738,-500.0,0.00040254,7]
[392292978,1761315042747,-500.0,0.00040254,30]
[392292980,1761315042756,-168.0,0.00040257,2]
[392292982,1761315042766,-7143.75383259,0.0004026,2]
[392292984,1761315042776,-151.0,0.00040266,14]
[392292985,1761315042786,-151.0,0.00040266,14]
[392292986,1761315042796,-7000.0,0.0004027,3]
[392292987,1761315042805,-16549.4386179,0.0004027,3]
[392292988,1761315042815,-4233.3257699,0.00040272,2]
[392292989,1761315042824,-900.0,0.00040273,7]
[392292990,1761315042838,-38892.6153776,0.0004028,3]
[392292991,1761315042858,-33098.8772357,0.0004028,3]
[392292993,1761315042867,-58338.9230665,0.0004029,3]
[392292995,1761315042877,-49648.3158536,0.0004029,3]
[392292996,1761315042889,-1425.0,0.00040292,2]
[392292997,1761315042900,-500.0,0.00040299,30]
[392292998,1761315042910,-151.0,0.000403,120]
[392292999,1761315042920,-151.0,0.000403,120]
[392293000,1761315042930,-151.0,0.000403,120]
[392293001,1761315042940,-151.0,0.000403,120]
[392293002,1761315042950,-464.308877,0.000403,120]
[392293003,1761315042960,-464.308877,0.000403,120]
[392293004,1761315042971,-151.0,0.000403,120]
[392293005,1761315042981,-151.0,0.000403,120]
[392293006,1761315042991,-464.308877,0.000403,120]
[392293007,1761315043000,-151.0,0.000403,120]
[392293008,1761315043010,-151.0,0.000403,120]
[392293009,1761315043019,-464.308877,0.000403,120]
[392293010,1761315043030,-151.0,0.000403,30]
[392293011,1761315043039,-151.0,0.000403,120]
[392293012,1761315043048,-151.0,0.000403,120]
[392293013,1761315043058,-151.0,0.000403,120]
[392293014,1761315043068,-151.0,0.000403,120]
[392293015,1761315043078,-151.0,0.000403,120]
[392293016,1761315043088,-151.0,0.000403,120]
[392293017,1761315043098,-151.0,0.000403,120]
[392293018,1761315043108,-217.61869,0.000403,120]
[392293019,1761315043118,-151.0,0.000403,120]
[392293020,1761315043128,-151.0,0.000403,60]
[392293021,1761315043138,-151.0,0.000403,120]
[392293022,1761315043148,-151.0,0.000403,120]
[392293023,1761315043158,-217.61869,0.000403,120]
[392293024,1761315043168,-217.61869,0.000403,120]
[392293025,1761315043178,-151.0,0.000403,120]
[392293026,1761315043187,-217.61869,0.000403,120]
[392293027,1761315043197,-249.663902,0.000403,120]
[392293028,1761315043207,-249.663902,0.000403,120]
[392293029,1761315043217,-249.663902,0.000403,120]
[392293030,1761315043229,-151.0,0.000403,120]
[392293031,1761315043238,-249.663902,0.000403,120]
[392293032,1761315043248,-151.0,0.000403,120]
[392293033,1761315043258,-151.0,0.000403,120]
[392293034,1761315043268,-151.0,0.000403,120]
[392293035,1761315043277,-151.0,0.000403,120]